fUSD/lending_fUSD_20250109
["ID","MTS","AMOUNT","RATE_DAILY","PERIOD"]
[348294547,1736435461305,-500.0,0.00010799,2]
[348294548,1736435461315,-500.0,0.00010799,2]
[348294549,1736435461325,-500.0,0.00010799,2]
[348294550,1736435461335,-500.0,0.00010799,2]
[348294551,1736435461345,-500.0,0.00010799,2]
[348294552,1736435461354,-500.0,0.00010799,2]
[348294553,1736435461364,-500.0,0.00010799,2]
[348294554,1736435461373,-500.0,0.00010799,2]
[348294555,1736435461383,-500.0,0.00010799,2]
[348294556,1736435461394,-500.0,0.00010799,2]
[348294557,1736435461403,-500.0,0.00010799,2]
[348294558,1736435461413,-500.0,0.00010799,2]
[348294559,1736435461422,-500.0,0.00010799,2]
[348294560,1736435461431,-487.72108227,0.000108,2]
[348294561,1736435461441,-500.0,0.000108,2]
[348294562,1736435461450,-500.0,0.000108,2]
[348294563,1736435461460,-500.0,0.000108,2]
[348294564,1736435461470,-500.0,0.000108,2]
[348294565,1736435461479,-500.0,0.000108,2]
[348294566,1736435461490,-500.0,0.000108,2]
[348294567,1736435461501,-500.0,0.000108,2]
[348294568,1736435461514,-500.0,0.000108,2]
[348294569,1736435461523,-500.0,0.000108,2]
[348294570,1736435461533,-500.0,0.000108,2]
[348294571,1736435461543,-500.0,0.000108,2]
[348294572,1736435461552,-500.0,0.000108,2]
[348294573,1736435461561,-500.0,0.000108,2]
[348294574,1736435461572,-547.95,0.000108,2]
[348294575,1736435461581,-500.0,0.000108,2]
[348294576,1736435461591,-358.71,0.000108,2]
[348294577,1736435461601,-271.01,0.000108,2]
[348294578,1736435461614,-500.0,0.000108,2]
[348294579,1736435461623,-500.0,0.000108,2]
[348294580,1736435461632,-500.0,0.000108,2]
[348294581,1736435461642,-500.0,0.000108,2]
[348294582,1736435461651,-500.0,0.000108,2]
[348294583,1736435461661,-500.0,0.000108,2]
[348294584,1736435461670,-500.0,0.000108,2]
[348294585,1736435461679,-500.0,0.000108,2]
[348294586,1736435461688,-500.0,0.000108,2]
[348294587,1736435461696,-500.0,0.000108,2]
[348294588,1736435461706,-500.0,0.000108,2]
[348294589,1736435461717,-500.0,0.000108,2]
[348294590,1736435461727,-500.0,0.000108,2]
[348294591,1736435461736,-500.0,0.000108,2]
[348294592,1736435461745,-500.0,0.000108,2]
[348294593,1736435461756,-500.0,0.000108,2]
[348294594,1736435461766,-500.0,0.000108,2]
[348294595,1736435461775,-500.0,0.000108,2]
[348294596,1736435461784,-500.0,0.000108,2]
[348294597,1736435461794,-500.0,0.000108,2]
[348294598,1736435461804,-500.0,0.000108,2]
[348294599,1736435461813,-500.0,0.000108,2]
[348294600,1736435461822,-500.0,0.000108,2]
[348294601,1736435461832,-500.0,0.000108,2]
[348294602,1736435461842,-500.0,0.000108,2]
[348294603,1736435461851,-500.0,0.000108,2]
[348294604,1736435461862,-500.0,0.000108,2]
[348294605,1736435461930,-500.0,0.000108,2]
[348294606,1736435461943,-500.0,0.000108,2]
[348294607,1736435461952,-500.0,0.000108,2]
[348294608,1736435461961,-500.0,0.000108,2]
[348294609,1736435461971,-649.53,0.000108,2]
[348294610,1736435461981,-500.0,0.000108,2]
[348294611,1736435461992,-500.0,0.000108,2]
[348294612,1736435462002,-500.0,0.000108,2]
[348294613,1736435462014,-500.0,0.000108,2]
[348294614,1736435462023,-500.0,0.000108,2]
[348294615,1736435462033,-500.0,0.000108,2]
[348294616,1736435462043,-534.86,0.000108,2]
[348294617,1736435462052,-478.31,0.000108,2]
[348294618,1736435462061,-500.0,0.000108,2]
[348294619,1736435462071,-500.0,0.000108,2]
[348294620,1736435462081,-500.0,0.000108,2]
[348294621,1736435462090,-500.0,0.000108,2]
[348294622,1736435462100,-500.0,0.000108,2]
[348294623,1736435462111,-423.31969594,0.000108,2]
[348294624,1736435462120,-500.0,0.000108,2]
[348294625,1736435462130,-500.0,0.000108,2]
[348294626,1736435462140,-500.0,0.000108,2]
[348294627,1736435462150,-500.0,0.000108,2]
[348294628,1736435462160,-500.0,0.000108,2]
[348294629,1736435462170,-500.0,0.000108,2]
[348294630,1736435462181,-500.0,0.000108,2]
[348294631,1736435462191,-500.0,0.000108,2]
[348294632,1736435462200,-500.0,0.000108,2]
[348294633,1736435462210,-500.0,0.000108,2]
[348294634,1736435462220,-500.0,0.000108,2]
[348294635,1736435462231,-500.0,0.000108,2]
[348294636,1736435462241,-500.0,0.000108,2]
[348294637,1736435462250,-500.0,0.000108,2]
[348294638,1736435462261,-500.0,0.000108,2]
[348294639,1736435462271,-500.0,0.000108,2]
[348294640,1736435462280,-369.09606204,0.000108,2]
[348294641,1736435462289,-617.54,0.000108,2]
[348294642,1736435462298,-500.0,0.000108,2]
[348294643,1736435462307,-500.0,0.000108,2]
[348294644,1736435462316,-500.0,0.000108,2]
[348294645,1736435462326,-500.0,0.000108,2]
[348294646,1736435462335,-500.0,0.000108,2]
[348294647,1736435462344,-500.0,0.000108,2]
[348294648,1736435462353,-500.0,0.000108,2]
[348294649,1736435462362,-500.0,0.000108,2]
[348294650,1736435462371,-500.0,0.000108,2]
[348294651,1736435462381,-500.0,0.000108,2]
[348294652,1736435462391,-500.0,0.000108,2]
[348294653,1736435462401,-500.0,0.000108,2]
[348294654,1736435462411,-500.0,0.000108,2]
[348294655,1736435462421,-500.0,0.000108,2]
[348294656,1736435462430,-500.0,0.000108,2]
[348294657,1736435462439,-500.0,0.000108,2]
[348294658,1736435462449,-1474.26,0.000108,2]
[348294659,1736435462458,-1474.26,0.000108,2]
[348294660,1736435462467,-1068.96,0.000108,2]
[348294661,1736435462476,-2257.63,0.000108,2]
[348294662,1736435462486,-1486.04,0.000108,2]
[348294663,1736435462495,-2411.94,0.00010801,2]
[348294664,1736435462506,-549.66,0.00010801,2]
[348294665,1736435462515,-958.29,0.00010801,2]
[348294666,1736435462524,-500.0,0.00010801,2]
[348294667,1736435462534,-2516.81,0.00010816,2]
[348294668,1736435462545,-844.98,0.00010816,2]
[348294669,1736435462555,-526.76,0.00010816,2]
[348294670,1736435462565,-500.0,0.00010818,2]
[348294671,1736435462576,-500.0,0.00010818,2]
[348294672,1736435462585,-605.11,0.00010818,2]
[348294673,1736435462594,-500.0,0.00010818,2]
[348294674,1736435462604,-1811.96,0.00010818,2]
[348294675,1736435462615,-1325.78,0.00010818,2]
[348294676,1736435462624,-1904.14,0.00010818,2]
[348294677,1736435462634,-986.79,0.00010818,2]
[348294678,1736435462646,-1138.85,0.00010818,2]
[348294679,1736435462655,-3077.27,0.00010818,2]
[348294680,1736435462665,-9056.59,0.00010818,2]
[348294681,1736435462677,-1508.02,0.00010818,2]
[348294682,1736435462687,-500.0,0.00010818,2]
[348294683,1736435462696,-500.0,0.00010818,2]
[348294684,1736435462706,-2101.42,0.00010818,2]
[348294685,1736435462717,-500.0,0.00010818,2]
[348294686,1736435462727,-500.0,0.00010818,2]
[348294687,1736435462738,-871.11,0.00010818,2]
[348294688,1736435462750,-834.82,0.00010818,2]
[348294689,1736435462762,-500.0,0.00010818,2]
[348294690,1736435462771,-1235.04,0.00010818,2]
[348294691,1736435462781,-1000.0,0.00010818,2]
[348294692,1736435462790,-692.05,0.00010818,2]
[348294693,1736435462800,-500.0,0.00010818,2]
[348294694,1736435462809,-1722.76,0.00010818,2]
[348294695,1736435462819,-1270.55,0.00010818,2]
[348294696,1736435462829,-150.0,0.00010823,2]
[348294697,1736435462838,-150.0,0.00010839,2]
[348294698,1736435462848,-206.68611675,0.000109,2]
[348294699,1736435462858,-150.0,0.00010907,2]
[348294700,1736435462867,-150.0,0.00010917,2]
[348294701,1736435462876,-150.0,0.00010958,2]
[348294702,1736435462886,-999.0,0.00010958,2]
[348294703,1736435462896,-150.0,0.0001096,2]
[348294704,1736435462905,-150.0,0.0001097,2]
[348294705,1736435462915,-6137.05738419,0.00011,2]
[348294706,1736435462923,-550.0,0.00011,2]
[348294707,1736435462932,-150.0,0.00011,2]
[348294708,1736435462941,-206.68611674,0.00011,2]
[348294709,1736435462951,-150.0,0.00011001,2]
[348294710,1736435462960,-150.0,0.00011028,2]
[348294711,1736435462970,-150.0,0.00011047,2]
[348294712,1736435462979,-150.0,0.00011047,2]
[348294713,1736435462989,-150.0,0.00011047,2]
[348294714,1736435462998,-150.0,0.00011047,2]
[348294715,1736435463009,-873.95,0.00011067,2]
[348294716,1736435463019,-853.78,0.00011067,2]
[348294717,1736435463028,-500.0,0.00011067,2]
[348294718,1736435463038,-1622.53,0.00011067,2]
[348294719,1736435463048,-736.68,0.00011067,2]
[348294720,1736435463058,-709.66,0.00011067,2]
[348294721,1736435463067,-1385.38,0.00011067,2]
[348294722,1736435463077,-2843.25,0.00011067,2]
[348294723,1736435463087,-1378.92,0.00011067,2]
[348294724,1736435463096,-686.902198,0.00011067,2]
[348294725,1736435463106,-890.85,0.00011067,2]
[348294726,1736435463116,-918.646778,0.00011067,2]
[348294727,1736435463126,-3339.53,0.00011067,2]
[348294728,1736435463136,-847.48,0.00011067,2]
[348294729,1736435463146,-554.43,0.00011067,2]
[348294730,1736435463156,-500.0,0.00011067,2]
[348294731,1736435463166,-3496.51,0.00011067,2]
[348294732,1736435463176,-500.0,0.00011067,2]
[348294733,1736435463187,-830.77,0.00011067,2]
[348294734,1736435463196,-500.0,0.00011067,2]
[348294735,1736435463207,-500.0,0.00011067,2]
[348294736,1736435463216,-1059.41,0.00011067,2]
[348294737,1736435463226,-1383.26,0.00011067,2]
[348294738,1736435463236,-913.75,0.00011067,2]
[348294739,1736435463245,-2581.58,0.00011067,2]
[348294740,1736435463255,-500.0,0.00011068,2]
[348294741,1736435463265,-205.96,0.00011068,2]
[348294742,1736435463274,-500.0,0.00011068,2]
[348294743,1736435463283,-500.0,0.00011068,2]
[348294744,1736435463294,-500.0,0.00011068,2]
[348294745,1736435463304,-500.0,0.00011068,2]
[348294746,1736435463313,-500.0,0.00011068,2]
[348294747,1736435463322,-500.0,0.00011068,2]
[348294748,1736435463332,-500.0,0.00011068,2]
[348294749,1736435463342,-500.0,0.00011068,2]
[348294750,1736435463352,-500.0,0.00011068,2]
[348294751,1736435463362,-500.0,0.00011068,2]
[348294752,1736435463371,-500.0,0.00011068,2]
[348294753,1736435463381,-500.0,0.00011068,2]
[348294754,1736435463392,-186.8,0.00011068,2]
[348294755,1736435463402,-500.0,0.00011068,2]
[348294756,1736435463412,-500.0,0.00011068,2]
[348294757,1736435463422,-500.0,0.00011068,2]
[348294759,1736435463432,-500.0,0.00011068,2]
[348294760,1736435463441,-500.0,0.00011068,2]
[348294761,1736435463451,-500.0,0.00011068,2]
[348294762,1736435463461,-500.0,0.00011068,2]
[348294763,1736435463471,-500.0,0.00011068,2]
[348294764,1736435463481,-500.0,0.00011068,2]
[348294765,1736435463491,-500.0,0.00011068,2]
[348294766,1736435463502,-500.0,0.00011068,2]
[348294767,1736435463515,-500.0,0.00011068,2]
[348294768,1736435463526,-500.0,0.00011068,2]
[348294769,1736435463536,-500.0,0.00011068,2]
[348294770,1736435463547,-163.48,0.00011068,2]
[348294771,1736435463558,-500.0,0.00011068,2]
[348294772,1736435463569,-500.0,0.00011068,2]
[348294773,1736435463579,-500.0,0.00011068,2]
[348294774,1736435463590,-500.0,0.00011068,2]
[348294775,1736435463600,-500.0,0.00011068,2]
[348294776,1736435463614,-500.0,0.00011068,2]
[348294777,1736435463625,-500.0,0.00011068,2]
[348294778,1736435463636,-569.56,0.00011068,2]
[348294779,1736435463647,-500.0,0.00011068,2]
[348294780,1736435463658,-539.84,0.00011068,2]
[348294781,1736435463668,-500.0,0.00011068,2]
[348294782,1736435463678,-500.0,0.00011068,2]
[348294783,1736435463688,-500.0,0.00011068,2]
[348294784,1736435463698,-500.0,0.00011068,2]
[348294785,1736435463709,-500.0,0.00011068,2]
[348294786,1736435463720,-592.81,0.00011068,2]
[348294787,1736435463730,-2773.35,0.00011068,2]
[348294788,1736435463741,-500.0,0.00011068,2]
[348294789,1736435463751,-500.0,0.00011068,2]
[348294790,1736435463765,-500.0,0.00011068,2]
[348294791,1736435463776,-500.0,0.00011068,2]
[348294792,1736435463787,-500.0,0.00011068,2]
[348294793,1736435463797,-1523.64,0.00011068,2]
[348294794,1736435463808,-1540.84,0.00011068,2]
[348294795,1736435463819,-500.0,0.00011068,2]
[348294796,1736435463829,-500.0,0.00011068,2]
[348294797,1736435463840,-500.0,0.00011068,2]
[348294798,1736435463850,-500.0,0.00011068,2]
[348294799,1736435463861,-500.0,0.00011068,2]
[348294800,1736435463871,-4594.33,0.00011068,2]
[348294801,1736435463880,-500.0,0.00011068,2]
[348294802,1736435463891,-601.61,0.00011068,2]
[348294803,1736435463900,-500.0,0.00011068,2]
[348294804,1736435463911,-500.0,0.00011068,2]
[348294805,1736435463921,-500.0,0.00011068,2]
[348294806,1736435463931,-500.0,0.00011068,2]
[348294807,1736435463941,-679.55,0.00011068,2]
[348294808,1736435463951,-500.0,0.00011068,2]
[348294809,1736435463960,-630.88,0.00011068,2]
[348294810,1736435463971,-500.0,0.00011068,2]
[348294811,1736435463981,-623.89,0.00011068,2]
[348294812,1736435463992,-500.0,0.00011068,2]
[348294813,1736435464003,-500.0,0.00011068,2]
[348294814,1736435464016,-500.0,0.00011068,2]
[348294815,1736435464027,-500.0,0.00011068,2]
[348294816,1736435464037,-500.0,0.00011068,2]
[348294817,1736435464047,-500.0,0.00011068,2]
[348294818,1736435464057,-177.92,0.00011068,2]
[348294819,1736435464067,-741.61,0.00011068,2]
[348294820,1736435464077,-710.71,0.00011068,2]
[348294821,1736435464086,-1713.36,0.00011068,2]
[348294822,1736435464097,-500.0,0.00011072,2]
[348294823,1736435464106,-2767.89,0.00011072,2]
[348294824,1736435464117,-4034.94,0.00011072,2]
[348294825,1736435464127,-819.48,0.00011072,2]
[348294826,1736435464137,-1727.46,0.00011072,2]
[348294827,1736435464147,-3578.28,0.00011072,2]
[348294828,1736435464157,-500.0,0.00011072,2]
[348294829,1736435464167,-1001.78,0.00011072,2]
[348294830,1736435464178,-500.0,0.00011072,2]
[348294831,1736435464188,-500.0,0.00011072,2]
[348294832,1736435464197,-740.95,0.00011072,2]
[348294833,1736435464207,-1720.06,0.00011072,2]
[348294834,1736435464217,-500.0,0.00011072,2]
[348294835,1736435464227,-650.21,0.00011072,2]
[348294836,1736435464237,-225.55,0.00011073,2]
[348294837,1736435464247,-500.0,0.00011073,2]
[348294838,1736435464260,-500.0,0.00011073,2]
[348294839,1736435464270,-607.69,0.00011073,2]
[348294840,1736435464280,-500.0,0.00011073,2]
[348294841,1736435464290,-500.0,0.00011073,2]
[348294842,1736435464300,-500.0,0.00011073,2]
[348294843,1736435464310,-500.0,0.00011073,2]
[348294844,1736435464320,-715.91,0.00011073,2]
[348294845,1736435464331,-500.0,0.00011073,2]
[348294846,1736435464340,-500.0,0.00011073,2]
[348294847,1736435464350,-500.0,0.00011073,2]
[348294848,1736435464360,-457.93709052,0.00011073,2]
[348294849,1736435464371,-500.0,0.00011073,2]
[348294850,1736435464381,-500.0,0.00011073,2]
[348294851,1736435464391,-500.0,0.00011073,2]
[348294852,1736435464401,-414.44969735,0.00011073,2]
[348294853,1736435464410,-500.0,0.00011073,2]
[348294854,1736435464421,-520.42,0.00011073,2]
[348294855,1736435464431,-500.0,0.00011073,2]
[348294856,1736435464441,-639.72458466,0.00011073,2]
[348294857,1736435464451,-500.0,0.00011073,2]
[348294858,1736435464461,-500.0,0.00011073,2]
[348294859,1736435464471,-500.0,0.00011073,2]
[348294860,1736435464480,-500.0,0.00011073,2]
[348294862,1736435464490,-500.0,0.00011073,2]
[348294863,1736435464499,-500.0,0.00011073,2]
[348294864,1736435464511,-500.0,0.00011073,2]
[348294865,1736435464520,-500.0,0.00011073,2]
[348294866,1736435464530,-557.72,0.00011073,2]
[348294867,1736435464540,-519.96,0.00011073,2]
[348294868,1736435464550,-500.0,0.00011073,2]
[348294869,1736435464561,-500.0,0.00011073,2]
[348294870,1736435464571,-503.98197125,0.00011073,2]
[348294871,1736435464581,-500.0,0.00011073,2]
[348294872,1736435464591,-663.48,0.00011073,2]
[348294873,1736435464600,-500.0,0.00011073,2]
[348294874,1736435464610,-500.0,0.00011073,2]
[348294875,1736435464625,-500.0,0.00011073,2]
[348294876,1736435464635,-500.0,0.00011073,2]
[348294877,1736435464645,-633.48,0.00011073,2]
[348294878,1736435464655,-500.0,0.00011073,2]
[348294879,1736435464665,-500.0,0.00011073,2]
[348294880,1736435464675,-500.0,0.00011073,2]
[348294881,1736435464685,-500.0,0.00011073,2]
[348294882,1736435464694,-500.0,0.00011073,2]
[348294883,1736435464704,-500.0,0.00011073,2]
[348294884,1736435464714,-500.0,0.00011073,2]
[348294885,1736435464724,-500.0,0.00011073,2]
[348294886,1736435464734,-500.0,0.00011073,2]
[348294887,1736435464744,-604.01,0.00011073,2]
[348294888,1736435464754,-500.0,0.00011073,2]
[348294889,1736435464767,-500.0,0.00011073,2]
[348294890,1736435464777,-500.0,0.00011073,2]
[348294891,1736435464787,-500.0,0.00011073,2]
[348294892,1736435464798,-500.0,0.00011073,2]
[348294893,1736435464808,-815.28,0.00011073,2]
[348294894,1736435464818,-500.0,0.00011073,2]
[348294895,1736435464828,-500.0,0.00011073,2]
[348294896,1736435464838,-431.64,0.00011073,2]
[348294897,1736435464849,-500.0,0.00011073,2]
[348294898,1736435464859,-589.7,0.00011073,2]
[348294899,1736435464869,-500.0,0.00011073,2]
[348294900,1736435464879,-500.0,0.00011073,2]
[348294901,1736435464889,-436.87826717,0.00011073,2]
[348294902,1736435464900,-808.64,0.00011073,2]
[348294903,1736435464910,-500.0,0.00011073,2]
[348294904,1736435464921,-500.0,0.00011073,2]
[348294905,1736435464932,-432.58,0.00011073,2]
[348294906,1736435464943,-500.0,0.00011073,2]
[348294907,1736435464954,-500.0,0.00011073,2]
[348294908,1736435464965,-841.09,0.00011073,2]
[348294909,1736435464975,-500.0,0.00011073,2]
[348294910,1736435464985,-500.0,0.00011073,2]
[348294911,1736435464996,-500.0,0.00011073,2]
[348294912,1736435465006,-500.0,0.00011073,2]
[348294913,1736435465016,-500.0,0.00011073,2]
[348294914,1736435465026,-500.0,0.00011073,2]
[348294915,1736435465037,-500.0,0.00011073,2]
[348294916,1736435465047,-500.0,0.00011073,2]
[348294917,1736435465057,-500.0,0.00011073,2]
[348294918,1736435465068,-565.62,0.00011073,2]
[348294919,1736435465078,-500.0,0.00011073,2]
[348294920,1736435465087,-190.68,0.00011073,2]
[348294921,1736435465097,-500.0,0.00011073,2]
[348294922,1736435465108,-500.0,0.00011073,2]
[348294923,1736435465118,-924.86,0.00011073,2]
[348294924,1736435465128,-500.0,0.00011073,2]
[348294925,1736435465138,-500.0,0.00011073,2]
[348294926,1736435465149,-500.0,0.00011073,2]
[348294927,1736435465159,-500.0,0.00011073,2]
[348294928,1736435465170,-500.0,0.00011073,2]
[348294929,1736435465179,-576.52,0.00011073,2]
[348294930,1736435465190,-500.0,0.00011073,2]
[348294931,1736435465199,-500.0,0.00011073,2]
[348294932,1736435465210,-500.0,0.00011073,2]
[348294933,1736435465220,-500.0,0.00011073,2]
[348294934,1736435465231,-500.0,0.00011073,2]
[348294935,1736435465241,-500.0,0.00011073,2]
[348294936,1736435465251,-500.0,0.00011073,2]
[348294937,1736435465264,-500.0,0.00011073,2]
[348294938,1736435465274,-635.08,0.00011073,2]
[348294939,1736435465284,-708.26,0.00011073,2]
[348294940,1736435465294,-500.0,0.00011073,2]
[348294941,1736435465304,-500.0,0.00011073,2]
[348294942,1736435465314,-500.0,0.00011073,2]
[348294943,1736435465326,-456.77156815,0.00011073,2]
[348294944,1736435465337,-500.0,0.00011073,2]
[348294945,1736435465347,-500.0,0.00011073,2]
[348294946,1736435465357,-500.0,0.00011073,2]
[348294947,1736435465368,-500.0,0.00011073,2]
[348294948,1736435465378,-500.0,0.00011073,2]
[348294949,1736435465388,-500.0,0.00011073,2]
[348294950,1736435465398,-500.0,0.00011073,2]
[348294951,1736435465408,-762.43,0.00011073,2]
[348294952,1736435465418,-500.0,0.00011073,2]
[348294953,1736435465428,-500.0,0.00011073,2]
[348294954,1736435465438,-500.0,0.00011073,2]
[348294955,1736435465448,-500.0,0.00011073,2]
[348294956,1736435465458,-500.0,0.00011073,2]
[348294957,1736435465468,-513.7,0.00011073,2]
[348294958,1736435465478,-500.0,0.00011073,2]
[348294959,1736435465487,-500.0,0.00011073,2]
[348294960,1736435465497,-500.0,0.00011073,2]
[348294961,1736435465507,-500.0,0.00011073,2]
[348294962,1736435465519,-500.0,0.00011073,2]
[348294963,1736435465528,-500.0,0.00011073,2]
[348294964,1736435465538,-500.0,0.00011073,2]
[348294965,1736435465548,-500.0,0.00011073,2]
[348294966,1736435465557,-500.0,0.00011073,2]
[348294967,1736435465567,-500.0,0.00011073,2]
[348294968,1736435465578,-500.0,0.00011073,2]
[348294969,1736435465588,-3645.42,0.00011073,2]
[348294970,1736435465598,-500.0,0.00011073,2]
[348294971,1736435465607,-500.0,0.00011073,2]
[348294972,1736435465617,-694.36,0.00011073,2]
[348294973,1736435465626,-500.0,0.00011073,2]
[348294974,1736435465638,-500.0,0.00011073,2]
[348294975,1736435465648,-500.0,0.00011073,2]
[348294976,1736435465659,-1629.4,0.00011073,2]
[348294977,1736435465669,-500.0,0.00011073,2]
[348294978,1736435465679,-500.0,0.00011073,2]
[348294979,1736435465688,-500.0,0.00011073,2]
[348294980,1736435465698,-500.0,0.00011073,2]
[348294981,1736435465709,-500.0,0.00011073,2]
[348294982,1736435465720,-500.0,0.00011073,2]
[348294983,1736435465730,-500.0,0.00011073,2]
[348294984,1736435465740,-2855.24,0.00011073,2]
[348294985,1736435465750,-500.0,0.00011073,2]
[348294986,1736435465761,-500.0,0.00011073,2]
[348294987,1736435465771,-500.0,0.00011073,2]
[348294988,1736435465781,-500.0,0.00011073,2]
[348294989,1736435465791,-8435.7,0.00011073,2]
[348294990,1736435465802,-500.0,0.00011073,2]
[348294991,1736435465812,-2614.32,0.00011073,2]
[348294992,1736435465822,-500.0,0.00011073,2]
[348294993,1736435465832,-500.0,0.00011073,2]
[348294994,1736435465843,-500.0,0.00011073,2]
[348294995,1736435465853,-500.0,0.00011073,2]
[348294996,1736435465864,-500.0,0.00011073,2]
[348294997,1736435465875,-554.00196058,0.00011073,2]
[348294998,1736435465884,-908.06,0.00011073,2]
[348294999,1736435465894,-500.0,0.00011073,2]
[348295000,1736435465905,-815.71,0.00011073,2]
[348295001,1736435465915,-500.0,0.00011073,2]
[348295002,1736435465926,-500.0,0.00011073,2]
[348295003,1736435465937,-870.3,0.00011073,2]
[348295004,1736435465948,-1496.93,0.00011073,2]
[348295005,1736435465958,-4478.21,0.00011073,2]
[348295006,1736435465970,-500.0,0.00011073,2]
[348295007,1736435465980,-500.0,0.00011073,2]
[348295008,1736435465991,-500.0,0.00011073,2]
[348295009,1736435466001,-500.0,0.00011073,2]
[348295010,1736435466012,-733.08,0.00011073,2]
[348295011,1736435466027,-500.0,0.00011073,2]
[348295012,1736435466037,-974.9,0.00011073,2]
[348295013,1736435466048,-500.0,0.00011073,2]
[348295014,1736435466059,-500.0,0.00011073,2]
[348295015,1736435466069,-2577.74,0.00011073,2]
[348295016,1736435466079,-2752.02,0.00011073,2]
[348295017,1736435466089,-500.0,0.00011073,2]
[348295018,1736435466099,-500.0,0.00011073,2]
[348295019,1736435466109,-500.0,0.00011073,2]
[348295020,1736435466119,-500.0,0.00011073,2]
[348295021,1736435466129,-654.43,0.00011073,2]
[348295022,1736435466140,-500.0,0.00011073,2]
[348295023,1736435466151,-500.0,0.00011073,2]
[348295024,1736435466160,-584.81,0.00011073,2]
[348295025,1736435466171,-500.0,0.00011073,2]
[348295026,1736435466182,-500.0,0.00011073,2]
[348295027,1736435466194,-1830.73,0.00011073,2]
[348295028,1736435466207,-500.0,0.00011073,2]
[348295029,1736435466220,-5234.76,0.00011073,2]
[348295030,1736435466230,-500.0,0.00011073,2]
[348295031,1736435466240,-500.0,0.00011073,2]
[348295032,1736435466250,-500.0,0.00011073,2]
[348295033,1736435466262,-683.26,0.00011073,2]
[348295034,1736435466272,-500.0,0.00011073,2]
[348295035,1736435466283,-500.0,0.00011073,2]
[348295036,1736435466293,-779.45,0.00011073,2]
[348295037,1736435466304,-500.0,0.00011073,2]
[348295038,1736435466314,-500.0,0.00011073,2]
[348295039,1736435466324,-500.0,0.00011073,2]
[348295040,1736435466335,-573.14,0.00011073,2]
[348295041,1736435466346,-500.0,0.00011073,2]
[348295042,1736435466357,-707.18,0.00011073,2]
[348295043,1736435466367,-582.94,0.00011073,2]
[348295044,1736435466378,-500.0,0.00011073,2]
[348295045,1736435466389,-500.0,0.00011073,2]
[348295046,1736435466399,-500.0,0.00011073,2]
[348295047,1736435466409,-500.0,0.00011073,2]
[348295048,1736435466419,-500.0,0.00011073,2]